Cogmind - Beta 13 @@@ ROGUE MODE // 2024.06.19 @ 22:00:48 Player: wad Result: Destroyed by as-08378 with Assembled Heavy Rifle Performance ------------- Evolutions (0) 0 Regions Visited (2) 400 Robots Destroyed (18) 90 Value Destroyed (490) 490 Prototype IDs (2) 40 Alien Tech Used (0) 0 Bonus (0) 0 TOTAL SCORE: 1020 Bonus ------- None Cogmind --------- Core Integrity 0/250 Matter 275/300 Energy 13/100 System Corruption 0% Temperature Cool (0) Movement Flying (440) Ox5 Location -10/Mines Parts ------- > --- POWER (1) -------- (None) > --- PROPULSION (2) --- Flight Unit > --- UTILITY (2) ------ Large Storage Unit Transport Network Coupler > --- WEAPON (2) ------- Backup Laser I > --- INVENTORY (15) --- Ion Engine Light Ion Engine Light Treads Wheel Wheel Hover Unit Large Storage Unit Small Battery (100) Small Matter Pod (26) Structural Scanner Peak State ------------ > --- POWER ------------ Ion Engine > --- PROPULSION ------- Aluminum Leg Aluminum Leg > --- UTILITY ---------- Large Storage Unit Small Battery > --- WEAPON ----------- Medium Laser Particle Gun > --- INVENTORY -------- Ion Engine Ion Engine Light Ion Engine Aluminum Leg Wheel Wheel Hover Unit [Rating: 8] Favorites ----------- Power Ion Engine Engine Ion Engine Propulsion Aluminum Leg Treads Light Treads Leg Aluminum Leg Wheel Wheel Hover Unit Hover Unit Flight Unit Flight Unit Utility Large Storage Unit Storage Large Storage Unit Processor Transport Network Coupler Weapon Light Assault Rifle Energy Gun Backup Laser I Energy Cannon Beam Cannon Ballistic Gun Light Assault Rifle Special Weapon Mining Laser Build | -11 -10 -10 ------- Run | Yrd Mat Min Slots Evolved . | . . . Power . | . . . Propulsion . | . . . Utility . | . . . Weapon . | . . . Parts Attached 36 | 5 25 6 Power 5 | 2 3 . Engine 5 | 2 3 . Core . | . . . Reactor . | . . . Propulsion 17 | 2 13 2 Treads 1 | . 1 . Leg 9 | 2 7 . Wheel 2 | . 2 . Hover 1 | . 1 . Flight 4 | . 2 2 Utility 3 | . 3 . Device . | . . . Storage 2 | . 2 . Processor 1 | . 1 . Hackware . | . . . Protection . | . . . Artifact . | . . . Weapon 11 | 1 6 4 Energy Gun 4 | . 3 1 Energy Cannon 2 | . 1 1 Ballistic Gun 2 | 1 1 . Ballistic Cannon . | . . . Launcher . | . . . Special Weapon 3 | . 1 2 Impact Weapon . | . . . Slashing Weapon . | . . . Piercing Weapon . | . . . Special Melee Weapon . | . . . Unidentified Prototypes . | . . . Parts Lost 16 | . 9 7 Power 3 | . 2 1 Propulsion 6 | . 3 3 Utility . | . . . Weapon 7 | . 4 3 Highest Loss Streak 5 | . 4 5 To Critical Strikes . | . . . Average Slot Usage (%) 88 | . 89 85 Engine 12 | . 13 8 Leg 24 | . 24 26 Wheel 1 | . 1 . Storage 16 | . 16 14 Processor 8 | . 6 14 Energy Gun 11 | . 12 8 Energy Cannon 5 | . 6 . Ballistic Gun 4 | . 6 . Special Weapon 2 | . . 11 Naked Turns . | . . . Heaviest Build 31 | 6 31 27 Greatest Support 20 | 20 20 20 Greatest Overweight (x) 3 | . 3 1 Average Overweight (x) . | . 1 1 Largest Inventory Capacity 15 | 5 15 15 Average Capacity 12 | 5 14 15 Most Carried 14 | 5 12 14 Average Carried 7 | 4 7 12 Final Capacity 15 | 5 15 15 Final Carried 12 | 5 12 10 Class Distribution -------------------- 65% | Mutant 34% | Scavenger-Mutant Dominant Class ---------------- Mutant | -10/Materials Scavenger-Mutant | -10/Mines Resources | -11 -10 -10 ----------- Run | Yrd Mat Min Matter Collected 502 | 253 206 43 Remotely . | . . . Salvage Created 697 | 45 638 14 Parts 30 | 1 29 . Haulers Intercepted 1 | . 1 . Recyclers Shooed 1 | . 1 . Parts Field Recycled . | . . . Retrieved Matter . | . . . Parts Self-Destructed . | . . . Prevented . | . . . Kills | -11 -10 -10 ------- Run | Yrd Mat Min Combat Hostiles Destroyed 16 | 1 13 2 Guns 13 | 1 11 1 Cannons 3 | . 2 1 Classes Destroyed 6 | 1 4 1 Hauler 1 | . 1 . Recycler 1 | . 1 . Watcher 2 | . 2 . Swarmer 3 | . 3 . Grunt 11 | 1 10 . Assembled 2 | . . 2 Best Kill Streak 3 | 1 3 1 Combat Bots Only 3 | 1 3 1 Max Kills in Single Turn 2 | 1 2 1 Gunslinging 1 | . 1 . Exploded . | . . . Melee . | . . . Uniques/NPCs Destroyed . | . . . Combat | -11 -10 -10 -------- Run | Yrd Mat Min Hostile Shots Fired 137 | 7 88 42 Missed 30 | 2 16 12 Damage Taken 1479 | 56 904 519 Core 254 | 22 160 72 Absorbed by Shields . | . . . Regen/Repaired (Parts) 26 | . 26 . Core Remaining (%) 91 | 91 . . Volleys Fired 92 | 9 67 16 Largest 2 | 1 2 2 Hottest 200 | 20 115 200 Shots Fired 134 | 9 100 25 Gun 113 | 9 94 10 Cannon 9 | . 6 3 Launcher . | . . . Special 12 | . . 12 Kinetic 30 | 9 21 . Thermal 104 | . 79 25 Explosive . | . . . Electromagnetic . | . . . Robot Hit Streak 11 | 3 11 4 Robot Miss Streak 6 | 2 5 6 Penetration Max . | . . . Secondary Targets 1 | . 1 . Max Gunslinging Chain 1 | . 1 . Shots Hit Robots 76 | 5 61 10 Core Hits 38 | 4 29 5 Critical Kills . | . . . Critical Parts Destroyed . | . . . Critical Strikes 7 | . 7 . Burn 7 | . 7 . Melee Attacks . | . . . Impact . | . . . Slashing . | . . . Piercing . | . . . Sneak Attacks . | . . . Combat Hostiles . | . . . Follow-up Attacks . | . . . Damage Inflicted 957 | 49 755 153 Guns 760 | 46 668 46 Cannons 122 | . 87 35 Explosions . | . . . Melee . | . . . Ramming 3 | 3 . . Kinetic 167 | 46 121 . Thermal 787 | . 634 153 Explosive . | . . . Electromagnetic . | . . . Impact . | . . . Slashing . | . . . Piercing . | . . . Highest Corruption . | . . . Average Corruption . | . . . Corruption Purged . | . . . Corruption Blocked . | . . . Overload Shots . | . . . Overflow Damage 3 | . . 3 Projectiles 3 | . . 3 Explosions . | . . . Melee . | . . . Knockbacks . | . . . Impact . | . . . Kinetic . | . . . Secondary . | . . . Self-Inflicted Damage . | . . . Shots . | . . . Rammed . | . . . Targets Rammed 2 | 2 . . Kicked 2 | 2 . . Crushed . | . . . Highest Temperature 386 | 6 386 130 Average Temperature 85 | 6 95 51 Received Heat Transfer 634 | 30 504 100 Siege Activations . | . . . Robots Corrupted . | . . . Combat Hostiles . | . . . Parts Fried . | . . . Impact Corruptions . | . . . Robots Melted . | . . . Combat Hostiles . | . . . Parts Melted 3 | . 3 . Heat Transferred 2558 | . 2149 409 Parts Sabotaged . | . . . Parts Stolen . | . . . Parts Stripped . | . . . Power Chain Reactions . | . . . Alert | -11 -10 -10 ------- Run | Yrd Mat Min Peak Influence 236 | 20 236 27 Initial 12 | . . 12 Average 53 | 9 81 14 Maximum Alert Level 1 | . 1 . Low Security (%) 94 | 100 90 100 Level 1 5 | . 9 . Level 2 . | . . . Level 3 . | . . . Level 4 . | . . . Level 5 . | . . . High Security . | . . . Max Security . | . . . Squads Dispatched 2 | . 2 . Investigation 2 | . 2 . Extermination . | . . . Reinforcement . | . . . Assault . | . . . Garrison . | . . . Intercept . | . . . Searches Triggered . | . . . Construction Impeded . | . . . Haulers Reinforced . | . . . Active Scanning Responses . | . . . Cargo Convoy Interrupts . | . . . Stealth | -11 -10 -10 --------- Run | Yrd Mat Min Distress Signals 1 | . . 1 Communications Jammed . | . . . Distress Signals . | . . . Times Spotted 26 | 1 19 6 Peak Tracking Total 4 | 1 4 2 Tactical Retreats 3 | . . 3 Traps | -11 -10 -10 ------- Run | Yrd Mat Min Traps Triggered . | . . . Indirectly . | . . . Trap Hack Attempts . | . . . Triggered . | . . . Disarmed . | . . . Reprogrammed . | . . . Reused . | . . . Traps Extracted . | . . . Installed . | . . . Triggered . | . . . Machines | -11 -10 -10 ---------- Run | Yrd Mat Min Machines Disabled 2 | . 1 1 Max in Single Turn 1 | . 1 1 Machines Repaired . | . . . Machines Dismantled . | . . . Machines Sabotaged . | . . . Overloaded Fab Kills . | . . . Hacking | -11 -10 -10 --------- Run | Yrd Mat Min Machines Accessed 8 | . 8 . Terminals 6 | . 6 . Fabricators . | . . . Repair Stations 1 | . 1 . Recycling Units 1 | . 1 . Scanalyzers . | . . . Garrison Access . | . . . Total Hacks 29 | . 29 . Successful 20 | . 20 . Failed 9 | . 9 . Catastrophic 1 | . 1 . Database Lockouts . | . . . Manual . | . . . Terminals 24 | . 24 . Fabricators . | . . . Repair Stations 3 | . 3 . Recycling Units 2 | . 2 . Scanalyzers . | . . . Garrison Access . | . . . Terminal Hacks 17 | . 17 . Record 8 | . 8 . Prototype ID Bank 1 | . 1 . Emergency Access Points 1 | . 1 . Alert Level 1 | . 1 . Locate Traps 1 | . 1 . Dispatch Records 1 | . 1 . Maintenance Status 1 | . 1 . Security Status 1 | . 1 . Zone Layout 2 | . 2 . Fabricator Hacks . | . . . Repair Station Hacks 3 | . 3 . Scan Component 1 | . 1 . Repair 1 | . 1 . Refit 1 | . 1 . Recycling Unit Hacks . | . . . Scanalyzer . | . . . Garrison Access Hacks . | . . . Unauthorized Hacks . | . . . Terminals . | . . . Fabricators . | . . . Repair Stations . | . . . Recycling Units . | . . . Scanalyzers . | . . . Garrison Access . | . . . Data Cores Recovered . | . . . Used . | . . . Hacking Detections 7 | . 7 . Full Trace Events 3 | . 3 . Feedback Events . | . . . Feedback Blocked . | . . . Robot Schematics Acquired . | . . . Robots Built . | . . . Authchips . | . . . Time . | . . . Total Robot Build Rating . | . . . Part Schematics Acquired . | . . . Parts Built . | . . . Authchips . | . . . Time . | . . . Total Part Build Rating . | . . . Parts Repaired 1 | . 1 . Time 26 | . 26 . Parts Recycled . | . . . Recycled Matter . | . . . Retrieved Matter . | . . . Retrieved Components . | . . . Parts Scanalyzed . | . . . Part Schematics Acquired . | . . . Parts Damaged . | . . . Bothacking | -11 -10 -10 ------------ Run | Yrd Mat Min Used RIF Installer . | . . . Robots Hacked . | . . . Non-combat . | . . . Combat . | . . . Robot Hacks Applied . | . . . Relay Couplers Released . | . . . Fabnet Peak Effective % . | . . . Robots Rewired . | . . . Allies Hacked . | . . . Hacks Repelled . | . . . Allies | -11 -10 -10 -------- Run | Yrd Mat Min Total Allies . | . . . Largest Group . | . . . Highest-Rated Group . | . . . Highest-Rated Ally . | . . . Total Orders . | . . . Ally Attacks . | . . . Total Damage . | . . . Kills . | . . . Allies Corrupted . | . . . Allies Melted . | . . . Intel | -11 -10 -10 ------- Run | Yrd Mat Min Robot Analysis Total . | . . . Derelict Logs Recovered . | . . . Drone Launches . | . . . Drone Recoveries . | . . . Exploration | -11 -10 -10 ------------- Run | Yrd Mat Min Turns Passed 2293 | 568 1392 333 Spaces Moved 1073 | 348 603 122 Core 33 | 33 . . Treads 3 | . 3 . Legs 975 | 315 538 122 Wheels 46 | . 46 . Hover 16 | . 16 . Flight . | . . . Fastest Speed 50 | 50 95 190 Average Speed 159 | 113 179 190 Slowest Speed 260 | 120 260 190 Overloaded Moves . | . . . Propulsion Burnouts . | . . . Robots Hopped . | . . . Cave-ins Triggered . | . . . Exploration Rate (%) 29 | 11 63 13 Regions Visited 2 Branch Regions 1 Pre-discovered Areas . | . . . Known Exits Taken . | . . . Unknown Exits Taken 2 | 1 1 . Scrap Searched . | . . . Spaces Dug . | . . . Terrain Destroyed 6 | . . 6 Melee . | . . . Projectile 6 | . . 6 AOE . | . . . Terrain Rammed . | . . . Walls Destroyed . | . . . Machines Disabled . | . . . Actions | -11 -10 -10 --------- Run | Yrd Mat Min Total 1501 | 513 814 174 Wait 265 | 141 97 27 Move 1071 | 347 602 122 Hop . | . . . Pick Up 33 | 9 21 3 Fast Attach . | . . . Attach 21 | 4 12 5 Detach . | . . . Swap 15 | 1 13 1 Drop 2 | . 2 . Fire 92 | 9 67 16 Melee . | . . . Ram . | . . . Kick 2 | 2 . . Crush . | . . . Escape Stasis . | . . . Rewire . | . . . Trap . | . . . Miscellaneous . | . . . Route ------- -11/Scrapyard -10/Materials (discovered 4 exits: [*Mat x3] / [*Min]) -10/Mines History --------- Turn | Location | Event 2 | -11/Scrapyard | Met Revision 17 116 | -11/Scrapyard | Discovered new exit (range 8) 569 | -11/Scrapyard | Entered Materials 570 | -10/Materials | Build established: Mutant 1011 | -10/Materials | Discovered new exit (range 15) 1251 | -10/Materials | Discovered new exit (range 15) 1305 | -10/Materials | Core integrity fell below 50% 1366 | -10/Materials | Lost 4 parts (1p2n1w) 1503 | -10/Materials | Discovered new exit (range 15) 1668 | -10/Materials | Build established: Scavenger-Mutant 1731 | -10/Materials | Repaired Lgt. Assault Rifle? 1869 | -10/Materials | Discovered new exit (range 7) 1961 | -10/Materials | Entered Mines 1962 | -10/Mines | Assembled infested the area 2008 | -10/Mines | Core integrity fell below 20% 2294 | -10/Mines | Destroyed by as-08378 with Assembled Heavy Rifle Last Messages --------------- Acquired 11 matter. Acquired Wheel. Acquired 10 matter. Acquired Sml. Matter Pod. Acquired 8 matter. Acquired Wheel. Ion Engine destroyed. Destroyed Asb. F-torch. as-31498 destroyed. To regain energy, simply wait via the mouse wheel, '.', or KP5. Also make sure your per-turn energy generation is a net positive, and consider deactivating power-draining parts if not. Aluminum Leg destroyed. Mining Laser destroyed. Aluminum Leg destroyed. Mining Laser destroyed. Flight Unit destroyed. [Achievement: First Step to Greatness] Map ----- +----------------------------------------------------+ | ????????????????????????????????????????? | | ????????????????????????????????????????? | | ????????????????????????????????????????? | | ????????????????????????????????????????? | | ????????????????????????????????????????? | | ????????????????????????????##########??? | | ????????????????????????????# #??? | | ????????????????????????????# #??? | | ????????????????????????????# #??? | | ????????????????????????????# #??? | | ????????????????????????????# ] #??? | | ????????????????????????????# "" #??? | | ????????????????????????????# " " #??? | | ????????????????????????????# """ #??? | | ????????????????????????????# #??? | | ????????????????????????????# #??? | | ????????????????????????????##### ###??? | | ????????? ?????#???????????????# #????? | | ???????? ##?? ??????????????# #????? | | ??????????# ? ?????????????# #????? | | ??????????# ??##????????# #????? | | ?????????????# <##;##??????# #????? | | ??????????????# ######## ###??? | | ??????????????### ###; ##?? | | ???????????????????????#;a;## ### #?? | | ????????????????????????#@#?# #?## ##? | | ???????????????????###### ### #??## #? | | ??????????????????## ##; ;## ##### #? | | ??????????????????# ### #? | | ?????????????????# ######?######## ##? | | ?????????????????# # ??????????????###?? | | ?????????????????## #??????????????????? | | ?????????????????? ??????????????????? | | ?????????????????### #??????????????????? | | ??????????????????? ??????????????????? | | ??????????????????? ??????????????????? | | ??????????????????? #??????????????????? | | ??????????????????? ???????????????????? | | ???????????????????# ???????????????????? | | ???????????????????? ???????????????????? | | ????????????????????%???????????????????? | | ????????????????????%???????????????????? | | ????????????????????=???????????????????? | | ???????????????????? ???????????????????? | | ????????????????????????????????????????? | | ????????????????????????????????????????? | | ????????????????????????????????????????? | | ????????????????????????????????????????? | | ????????????????????????????????????????? | | ????????????????????????????????????????? | +----------------------------------------------------+ Best States ------------- Heat Dissipation 25 Energy Generation 10 Energy Capacity 350 Matter Stores 300 Matter Capacity 300 Sight Range 16 Terrain Scan Density 10 Evasion (%) 55 Recoil Reduction 1 Item Schematics ----------------- None Robot Schematics ------------------ None Fabricated ------------ Nothing Alien Tech Used ----------------- None Achievements -------------- Crack Shot First Step to Greatness Loot Pinata One Hack Too Far Part-time Mechanic Storm Trooper Challenges ------------ None Game ------ Seed LegPulseUnit Manual? 0 Play Time 00:35:31 Cumulative 0.5 hours Start 2024.06.19 @ 21:20:49 End 2024.06.19 @ 22:00:48 Sessions 1 Manual Loads 0 Difficulty Rogue Special Mode None Game No. 1 Rogue 1 Adventurer 0 Explorer 0 Win Type - Total 0 Types 0/0/0/0/0/0/0/0/0 Lore% 1 Gallery% 1 Achievement% 2 Wizard Run 0 Options --------- Layout 1 ASCII 0 Keyboard 0 Movement Arrows Keybinds 0 Fullscreen 1 Font 24/Smallcaps Map View 50x35 Zoom Use 0% Tactical HUD 0 Map Filters NONE Filters NONE Steam 1 RUN: 9194f1c5-f9e9-498d-ae49-44ec757d87db